Cogmind - Beta 10.2 @@@ ROGUE MODE // 2020.11.02 @ 23:48:59 // Halloween2020/ForbiddenLore Player: blelm Result: Self-destructed Performance ------------- Evolutions (3) 1500 Regions Visited (12) 2400 Robots Destroyed (154) 770 Value Destroyed (5440) 5440 Prototype IDs (32) 640 Alien Tech Used (0) 0 Bonus (2190) 2190 TOTAL SCORE: 12940 Bonus ------- High Alert Combat Kills 455 Follower Combat Kills 67 Entered Garrisons 400 Used RIF Installer 1000 Aligned with FarCom 300 Friendly Fire -32 Cogmind --------- Core Integrity 124/700 Matter 135/300 Energy 100/100 System Corruption 0% Temperature Cool (0) Movement Core (50) Location -7/Waste Parts ------- > --- POWER (1) -------- (None) > --- PROPULSION (3) --- (None) > --- UTILITY (7) ------ (None) > --- WEAPON (2) ------- (None) > --- INVENTORY (4) ---- Light Treads Experimental Energy Well (1000) NK-0LA's Tesla Doomcannon Peak State ------------ > --- POWER ------------ Graviton Reactor > --- PROPULSION ------- Light Treads Light Treads Light Treads > --- UTILITY ---------- High-capacity Storage Unit High-capacity Storage Unit EM Disruption Field > --- WEAPON ----------- NK-0LA's Tesla Doomcannon > --- INVENTORY -------- Nuclear Core Nuclear Core Light Treads Light Treads Experimental Heat Sink Large Storage Unit Experimental Energy Well High-capacity Matter Pod Experimental Sensor Array Hardened Light Armor Plating Hardened Light Armor Plating Hardened Light Armor Plating Thermal Barrier Improved EM Shotgun Improved EM Shotgun Autogun Rocket Launcher Mini Grenade Launcher Datajack Makeshift Hammer [Rating: 48] Favorites ----------- Power Nuclear Core Engine Ion Engine Power Core Nuclear Core Reactor Graviton Reactor Propulsion Light Treads Treads Light Treads Leg Aluminum Leg Wheel Compact Wheel Utility Large Storage Unit Device Thermal Barrier Storage Large Storage Unit Protection Hardened Light Armor Plating Weapon Autogun Energy Gun Improved EM Shotgun Energy Cannon Beam Cannon Ballistic Gun Autogun Ballistic Cannon Magnetic Acceleration Cannon Launcher Mini Grenade Launcher Impact Weapon Makeshift Hammer Slashing Weapon Mining Claw Build | -11 -10 -10 -9 -9 -9 -8 -8 -8 -8 -8 -7 -7 ------- Run | Scr Mat Min Mat Min Exi Min Mat Gar Mat Gar Fac Was Slots Evolved 6 | . . . 2 . . . 2 . . . 2 . Power . | . . . . . . . . . . . . . Propulsion 1 | . . . 1 . . . . . . . . . Utility 5 | . . . 1 . . . 2 . . . 2 . Weapon . | . . . . . . . . . . . . . Parts Attached 150 | 2 7 7 20 4 2 15 25 21 3 32 9 3 Power 10 | . 1 1 1 . . 2 1 2 . 2 . . Engine 4 | . 1 1 . . . . . 1 . 1 . . Core 3 | . . . 1 . . 1 . 1 . . . . Reactor 3 | . . . . . . 1 1 . . 1 . . Propulsion 35 | 2 1 4 8 1 . 2 5 4 . 7 1 . Treads 32 | 1 1 2 8 1 . 2 5 4 . 7 1 . Leg . | . . . . . . . . . . . . . Wheel 3 | 1 . 2 . . . . . . . . . . Hover . | . . . . . . . . . . . . . Flight . | . . . . . . . . . . . . . Utility 38 | . 2 . 3 1 2 6 8 4 1 5 6 . Device 6 | . . . . . . 3 . . . 1 2 . Storage 11 | . 2 . 2 . 2 1 2 1 . . 1 . Processor . | . . . . . . . . . . . . . Hackware . | . . . . . . . . . . . . . Protection 21 | . . . 1 1 . 2 6 3 1 4 3 . Artifact . | . . . . . . . . . . . . . Weapon 67 | . 3 2 8 2 . 5 11 11 2 18 2 3 Energy Gun 10 | . . . 5 . . . . 2 1 1 1 . Energy Cannon 4 | . 2 . 1 . . 1 . . . . . . Ballistic Gun 30 | . 1 1 2 2 . 4 6 5 1 7 1 . Ballistic Cannon 1 | . . . . . . . . . . 1 . . Launcher 13 | . . . . . . . 3 2 . 5 . 3 Special Weapon . | . . . . . . . . . . . . . Impact Weapon 8 | . . . . . . . 2 2 . 4 . . Slashing Weapon 1 | . . 1 . . . . . . . . . . Piercing Weapon . | . . . . . . . . . . . . . Special Melee Weapon . | . . . . . . . . . . . . . Unidentified Prototypes 9 | . . . 2 . . 6 . . 1 . . . Parts Lost 38 | . 4 3 3 2 . 3 5 4 . 9 . 5 Power 4 | . 1 1 . . . . 1 . . 1 . . Propulsion 12 | . 1 . 3 . . 1 2 1 . 4 . . Utility 10 | . . . . 1 . . 2 2 . 2 . 3 Weapon 12 | . 2 2 . 1 . 2 . 1 . 2 . 2 Highest Loss Streak 5 | . 2 3 2 1 . 2 2 2 . 3 . 5 Average Slot Usage (%) 97 | . 95 98 96 100 100 99 99 96 99 99 92 59 Engine 5 | . 14 13 . . . . . 5 9 5 7 4 Core 3 | . . . 10 11 11 10 5 . . . . . Reactor 1 | . . . . . . . 3 2 . 3 . . Treads 28 | . 26 26 32 33 33 33 26 27 27 26 23 12 Storage 23 | . 24 28 22 22 22 22 24 20 27 22 17 18 Protection 12 | . . . 8 11 11 10 20 21 18 20 27 14 Energy Gun 3 | . 11 . 16 2 . . . 1 9 1 . . Energy Cannon 2 | . . 12 1 . . . . . . . . . Ballistic Gun 12 | . 15 13 3 19 22 21 17 13 8 5 7 . Impact Weapon 1 | . . . . . . . . 3 . 4 . . Naked Turns 29 | . . . . . . . . . . . . 29 Heaviest Build 117 | 13 43 42 51 50 82 96 111 107 103 108 117 117 Greatest Support 63 | 16 40 40 60 60 60 63 63 60 60 60 60 60 Greatest Overweight (x) 2 | . 1 2 1 . 1 1 1 1 1 2 1 2 Average Overweight (x) . | . . . . . . 1 1 1 1 1 1 . Largest Inventory Capacity 26 | 6 16 16 16 16 20 20 26 26 26 26 24 24 Average Capacity 18 | 6 13 16 16 16 16 20 23 21 26 22 21 19 Most Carried 26 | 6 12 13 16 16 18 20 26 26 26 26 22 22 Average Carried 16 | 3 7 11 14 15 16 19 20 19 26 21 19 18 Final Capacity 26 | 6 16 16 16 16 20 20 26 26 26 20 24 4 Final Carried 26 | 3 11 11 16 16 18 20 24 26 26 19 22 4 Class Distribution -------------------- 48% | Mutant 23% | Bothacker-Mutant 16% | Hauler-Mutant 11% | Scavenger-Mutant Dominant Class ---------------- Mutant | -10/Materials Mutant | -10/Mines Mutant | -9/Materials Mutant | -9/Mines Mutant | -9/Exiles Hauler-Mutant | -8/Mines Hauler-Mutant | -8/Materials Scavenger-Mutant | -8/Garrison Bothacker-Mutant | -8/Materials Bothacker-Mutant | -8/Garrison Bothacker-Mutant | -7/Factory Bothacker-Mutant | -7/Waste Resources | -11 -10 -10 -9 -9 -9 -8 -8 -8 -8 -8 -7 -7 ----------- Run | Scr Mat Min Mat Min Exi Min Mat Gar Mat Gar Fac Was Matter Collected 3970 | 223 254 245 204 91 32 282 759 655 149 816 60 200 Remotely . | . . . . . . . . . . . . . Salvage Created 5756 | 51 601 282 1217 395 22 368 908 470 . 833 60 549 Parts 317 | 3 40 11 80 20 4 22 66 24 . 41 6 . Haulers Intercepted 10 | . 2 . 4 . . . 4 . . . . . Recyclers Shooed 5 | . 1 . 4 . . . . . . . . . Parts Field Recycled . | . . . . . . . . . . . . . Retrieved Matter . | . . . . . . . . . . . . . Parts Self-Destructed . | . . . . . . . . . . . . . Prevented . | . . . . . . . . . . . . . Kills | -11 -10 -10 -9 -9 -9 -8 -8 -8 -8 -8 -7 -7 ------- Run | Scr Mat Min Mat Min Exi Min Mat Gar Mat Gar Fac Was Combat Hostiles Destroyed 113 | . 11 5 13 8 . 6 22 13 . 31 1 3 Melee 2 | . . . . . . . . 1 . 1 . . Guns 62 | . 8 2 8 6 . 6 15 7 . 9 1 . Cannons 13 | . 2 3 4 . . . . . . 4 . . AOE 33 | . 1 . 1 1 . . 6 5 . 16 . 3 Classes Destroyed 17 | 1 7 1 2 2 1 1 . . . . 1 1 Worker 3 | . 2 . . . . . 1 . . . . . Builder 10 | . 2 1 6 . . . 1 . . . . . Tunneler 2 | . . . 1 1 . . . . . . . . Hauler 10 | . 2 . 4 . . . 4 . . . . . Recycler 8 | 1 . 1 5 1 . . . . . . . . Operator 2 | . 1 . . . . . 1 . . . . . Watcher 5 | . 2 . 2 . . . . . . . 1 . Swarmer 37 | . 3 . 7 1 . . 10 4 . 12 . . Grunt 45 | . 8 4 1 5 . 2 6 6 . 13 . . Brawler 2 | . . . . 1 . . 1 . . . . . Duelist 2 | . . . . 1 . 1 . . . . . . Sentry 17 | . . . 5 . . . 5 1 . 6 . . Hunter 4 | . . . . . . 2 . 2 . . . . Programmer 1 | . . . . . . . . . . . 1 . Compactor 3 | . . . . . . . . . . . . 3 Zionite 1 | . . . . . 1 . . . . . . . Assembled 1 | . . 1 . . . . . . . . . . Best Kill Streak 13 | 1 6 2 6 4 . 3 5 4 . 13 2 3 Combat Bots Only 13 | . 5 2 4 3 . 3 4 4 . 13 1 3 Max Kills in Single Turn 4 | 1 2 1 3 2 1 1 2 3 . 4 1 2 Gunslinging . | . . . . . . . . . . . . . Exploded 4 | . 1 . 1 1 . . 2 3 . 4 . 2 Melee 1 | . . . . . . . . 1 . 1 . . Uniques/NPCs Destroyed 1 | . . . . . . 1 . . . . . . NK-0LA (-8/Mines) Combat | -11 -10 -10 -9 -9 -9 -8 -8 -8 -8 -8 -7 -7 -------- Run | Scr Mat Min Mat Min Exi Min Mat Gar Mat Gar Fac Was Damage Taken 8070 | . 541 531 766 230 . 900 993 1270 . 1461 57 1321 Core 1346 | . 63 58 80 . . 59 71 350 . 89 . 576 Absorbed by Shields 8 | . . . . . . . . . . 8 . . Core Remaining (%) 55 | 100 . 51 . . . 65 . . . 7 . . Volleys Fired 349 | 1 48 20 54 14 2 20 77 47 . 47 5 14 Largest 2 | 2 2 2 2 2 2 2 2 2 . 2 2 2 Hottest 90 | 60 88 80 90 90 46 51 51 70 . 78 76 63 Shots Fired 637 | 2 93 40 108 28 4 39 144 75 . 73 10 21 Gun 528 | 2 85 20 97 28 4 39 135 67 . 46 5 . Cannon 54 | . 8 20 11 . . . . . . 10 5 . Launcher 55 | . . . . . . . 9 8 . 17 . 21 Special . | . . . . . . . . . . . . . Kinetic 395 | 1 48 20 21 16 4 39 135 56 . 45 10 . Thermal 39 | . 8 20 11 . . . . . . . . . Explosive 55 | . . . . . . . 9 8 . 17 . 21 Electromagnetic 148 | 1 37 . 76 12 . . . 11 . 11 . . Robot Hit Streak 16 | 1 14 16 15 12 3 16 15 12 . 14 3 10 Robot Miss Streak 6 | . 6 1 3 2 . 2 3 3 . 3 1 1 Penetration Max . | . . . . . . . . . . . . . Secondary Targets 8 | . 3 . . 1 . 1 1 1 . 1 . . Max Gunslinging Chain 1 | . 1 . . 1 . 1 1 1 . 1 . . Shots Hit Robots 472 | 1 68 36 81 23 1 33 96 48 . 61 6 18 Core Hits 262 | 1 29 13 53 15 1 18 41 27 1 49 3 11 Critical Hits 4 | . . . . 2 . 1 . . . 1 . . Critical Kills 2 | . . . . 1 . . . . . 1 . . Critical Parts Destroyed 2 | . . . . 1 . 1 . . . . . . Melee Attacks 52 | . . 9 . . . . 13 6 . 24 . . Impact 43 | . . . . . . . 13 6 . 24 . . Slashing 9 | . . 9 . . . . . . . . . . Piercing . | . . . . . . . . . . . . . Sneak Attacks 5 | . . 5 . . . . . . . . . . Combat Hostiles . | . . . . . . . . . . . . . Follow-up Attacks . | . . . . . . . . . . . . . Damage Inflicted 13778 | 15 1178 888 1892 516 12 519 2409 1213 1 2302 155 2678 Guns 5803 | 15 859 175 1103 405 12 462 1450 658 . 579 85 . Cannons 985 | . 159 289 246 . . . . . . 221 70 . Explosions 5867 | . 122 . 537 73 . . 757 484 . 1246 . 2648 Melee 924 | . . 395 . . . . 202 71 . 256 . . Ramming 199 | . 38 29 6 38 . 57 . . 1 . . 30 Kinetic 4196 | 15 466 175 91 183 12 462 1450 524 . 663 155 . Thermal 1426 | . 281 289 783 73 . . . . . . . . Explosive 5135 | . . . . . . . 757 484 . 1246 . 2648 Electromagnetic 1898 | . 393 . 1012 222 . . . 134 . 137 . . Impact 529 | . . . . . . . 202 71 . 256 . . Slashing 395 | . . 395 . . . . . . . . . . Piercing . | . . . . . . . . . . . . . Highest Corruption 5 | . . . . . . 2 5 5 5 5 . . Average Corruption 4 | . . . . . . 1 5 5 5 5 . . Corruption Purged . | . . . . . . . . . . . . . Effects 115 | . . . . . . 8 12 38 5 52 . . Message Errors 22 | . . . . . . 1 4 5 . 12 . . Matter Fused 16 | . . . . . . . 1 7 1 7 . . Heat Flow Errors 6 | . . . . . . . . 1 . 5 . . Energy Discharges 19 | . . . . . . 4 2 9 1 3 . . Parts Rejected 1 | . . . . . . . . 1 . . . . Data Loss (minor) 16 | . . . . . . 1 1 3 2 9 . . Data Loss (major) 10 | . . . . . . . . 4 1 5 . . Misfires 4 | . . . . . . . . 2 . 2 . . Targeting Errors 14 | . . . . . . 2 3 3 . 6 . . Weapon Failures 7 | . . . . . . . 1 3 . 3 . . Overload Shots . | . . . . . . . . . . . . . Overflow Damage 290 | . 18 192 35 9 . . 19 3 . 14 . . Projectiles 27 | . 18 3 6 . . . . . . . . . Explosions 53 | . . . 29 9 . . 11 3 . 1 . . Melee 210 | . . 189 . . . . 8 . . 13 . . Knockbacks 9 | . 2 1 . 1 . 1 . 1 . 2 1 . Impact 6 | . 2 1 . 1 . 1 . 1 . . . . Kinetic 3 | . . . . . . . . . . 2 1 . Secondary . | . . . . . . . . . . . . . Self-Inflicted Damage 743 | . . 8 185 31 . . . 48 . 186 . 285 Shots 24 | . . . 8 1 . . . 2 . 4 . 9 Rammed 28 | . 6 3 5 2 . 3 . . 1 . . 8 Targets Rammed 31 | . 7 3 5 3 . 3 1 . 1 . . 8 Kicked . | . . . . . . . . . . . . . Crushed 3 | . 1 . . 1 . . 1 . . . . . Highest Temperature 703 | . 124 292 341 324 14 109 217 703 . 449 166 305 Average Temperature 112 | . 39 120 107 108 10 35 74 193 . 134 86 195 Received Heat Transfer 1896 | . 261 153 111 111 . 108 243 414 . 495 . . Effects 26 | . . . 1 . . . . 15 . 7 . 3 Shutdowns 3 | . . . . . . . . 2 . 1 . . Energy Bleed 6 | . . . 1 . . . . 1 . 3 . 1 Interference 3 | . . . . . . . . . . 1 . 2 Matter Decay 5 | . . . . . . . . 4 . 1 . . Short Circuit 3 | . . . . . . . . 2 . 1 . . Damage (minor) 3 | . . . . . . . . 3 . . . . Damage (core) 3 | . . . . . . . . 3 . . . . Siege Activations . | . . . . . . . . . . . . . Robots Corrupted 1 | . . . . 1 . . . . . . . . Combat Hostiles 1 | . . . . 1 . . . . . . . . Parts Fried 11 | . 1 . 4 2 . . 3 . . 1 . . Impact Corruptions 4 | . . . . 1 . . 2 . . 1 . . Robots Melted . | . . . . . . . . . . . . . Combat Hostiles . | . . . . . . . . . . . . . Parts Melted 4 | . . 1 2 1 . . . . . . . . Heat Transferred 2258 | . 346 592 1270 50 . . . . . . . . Parts Sabotaged . | . . . . . . . . . . . . . Parts Stolen . | . . . . . . . . . . . . . Parts Stripped . | . . . . . . . . . . . . . Power Chain Reactions 11 | . 1 . 9 1 . . . . . . . . Missiles Intercepted . | . . . . . . . . . . . . . Alert | -11 -10 -10 -9 -9 -9 -8 -8 -8 -8 -8 -7 -7 ------- Run | Scr Mat Min Mat Min Exi Min Mat Gar Mat Gar Fac Was Peak Influence 1156 | 5 216 99 321 207 . 90 490 778 378 1156 649 187 Initial 606 | . 3 34 1 101 . . . 260 378 245 606 157 Average 288 | 2 69 5 171 118 . 24 221 563 378 826 589 160 Maximum Alert Level 4 | . 1 . 1 1 . . 2 3 1 4 2 . Low Security (%) 52 | 100 85 100 56 67 . 100 50 . . . . 100 Level 1 18 | . 14 . 43 32 . . 19 22 100 14 . . Level 2 16 | . . . . . . . 29 58 . 11 100 . Level 3 11 | . . . . . . . . 19 . 62 . . Level 4 1 | . . . . . . . . . . 11 . . Level 5 . | . . . . . . . . . . . . . High Security . | . . . . . . . . . . . . . Max Security . | . . . . . . . . . . . . . Squads Dispatched 7 | . 2 . 1 1 . . 2 . . . 1 . Investigation . | . . . . . . . . . . . . . Extermination 1 | . . . . . . . . . . . 1 . Reinforcement 5 | . 2 . 1 . . . 2 . . . . . Assault 1 | . . . . 1 . . . . . . . . Garrison . | . . . . . . . . . . . . . Intercept . | . . . . . . . . . . . . . Construction Impeded 1 | . . . 1 . . . . . . . . . Haulers Reinforced . | . . . . . . . . . . . . . Stealth | -11 -10 -10 -9 -9 -9 -8 -8 -8 -8 -8 -7 -7 --------- Run | Scr Mat Min Mat Min Exi Min Mat Gar Mat Gar Fac Was Distress Signals 3 | . 2 1 . . . . . . . . . . Communications Jammed . | . . . . . . . . . . . . . Distress Signals . | . . . . . . . . . . . . . Times Spotted 148 | . 19 6 22 12 . 7 29 12 . 34 2 5 Peak Tracking Total 7 | . 7 2 5 4 2 3 6 4 1 6 1 4 Tactical Retreats 9 | . . . 2 . . . 3 1 . 3 . . Traps | -11 -10 -10 -9 -9 -9 -8 -8 -8 -8 -8 -7 -7 ------- Run | Scr Mat Min Mat Min Exi Min Mat Gar Mat Gar Fac Was Traps Triggered 14 | . 1 . 1 . . . . 4 . 6 2 . Indirectly . | . . . . . . . . . . . . . Trap Hack Attempts . | . . . . . . . . . . . . . Triggered . | . . . . . . . . . . . . . Disarmed . | . . . . . . . . . . . . . Reprogrammed . | . . . . . . . . . . . . . Reused . | . . . . . . . . . . . . . Traps Extracted . | . . . . . . . . . . . . . Installed . | . . . . . . . . . . . . . Triggered . | . . . . . . . . . . . . . Exploded 1 | . . . . . 1 . . . . . . . Machines | -11 -10 -10 -9 -9 -9 -8 -8 -8 -8 -8 -7 -7 ---------- Run | Scr Mat Min Mat Min Exi Min Mat Gar Mat Gar Fac Was Machines Disabled 20 | . . . 4 4 . . 4 3 . 5 . . Max in Single Turn 2 | . . . 1 . . . 1 1 . 2 . . Garrison Relay 6 | . . . . . . . . 3 . 3 . . Phase Generator 1 | . . . . . . . . . . 1 . . Machines Sabotaged . | . . . . . . . . . . . . . Garrisons Compromised . | . . . . . . . . . . . . . Overloaded Fab Kills . | . . . . . . . . . . . . . Fab Network Shutdowns . | . . . . . . . . . . . . . Hacking | -11 -10 -10 -9 -9 -9 -8 -8 -8 -8 -8 -7 -7 --------- Run | Scr Mat Min Mat Min Exi Min Mat Gar Mat Gar Fac Was Machines Accessed 18 | . 3 1 4 1 1 . 4 . 3 . 1 . Terminals 12 | . 2 1 3 . . . 3 . 2 . 1 . Fabricators . | . . . . . . . . . . . . . Repair Stations . | . . . . . . . . . . . . . Recycling Units 2 | . 1 . 1 . . . . . . . . . Scanalyzers . | . . . . . . . . . . . . . Garrison Access 2 | . . . . . . . 1 . 1 . . . Total Hacks 39 | . 7 3 13 1 1 . 7 . 4 . 3 . Successful 17 | . 4 1 5 1 1 . 2 . 1 . 2 . Failed 22 | . 3 2 8 . . . 5 . 3 . 1 . Catastrophic 7 | . 1 1 1 . . . 3 . . . 1 . Database Lockouts . | . . . . . . . . . . . . . Manual 27 | . 5 3 10 . 1 . 4 . 3 . 1 . Terminals 29 | . 6 3 9 . . . 5 . 3 . 3 . Fabricators . | . . . . . . . . . . . . . Repair Stations . | . . . . . . . . . . . . . Recycling Units 5 | . 1 . 4 . . . . . . . . . Scanalyzers . | . . . . . . . . . . . . . Garrison Access 3 | . . . . . . . 2 . 1 . . . Terminal Hacks 11 | . 3 1 3 1 1 . 1 . . . 1 . Robot Analysis 2 | . 2 . . . . . . . . . . . Open Door 1 | . . . . 1 . . . . . . . . Branch Access Points 1 | . . . 1 . . . . . . . . . Unreport Threat 1 | . . 1 . . . . . . . . . . Locate Traps 2 | . . . 1 . . . 1 . . . . . Recall Reinforcements 1 | . 1 . . . . . . . . . . . Hauler Manifests 2 | . . . 1 . . . . . . . 1 . EX-Prototype ID Bank 1 | . . . . . 1 . . . . . . . Fabricator Hacks . | . . . . . . . . . . . . . Repair Station Hacks . | . . . . . . . . . . . . . Recycling Unit Hacks 3 | . 1 . 2 . . . . . . . . . Retrieve Components 3 | . 1 . 2 . . . . . . . . . Scanalyzer . | . . . . . . . . . . . . . Garrison Access Hacks 2 | . . . . . . . 1 . 1 . . . Unlock Access 2 | . . . . . . . 1 . 1 . . . Unauthorized Hacks 1 | . . . . . . . . . . . 1 . Terminals 1 | . . . . . . . . . . . 1 . Botnet 1 | . . . . . . . . . . . 1 . Fabricators . | . . . . . . . . . . . . . Repair Stations . | . . . . . . . . . . . . . Recycling Units . | . . . . . . . . . . . . . Scanalyzers . | . . . . . . . . . . . . . Garrison Access . | . . . . . . . . . . . . . Data Cores Recovered . | . . . . . . . . . . . . . Used . | . . . . . . . . . . . . . Hacking Detections 14 | . 2 1 4 . . . 3 . 3 . 1 . Full Trace Events . | . . . . . . . . . . . . . Feedback Events . | . . . . . . . . . . . . . Feedback Blocked . | . . . . . . . . . . . . . Robot Schematics Acquired . | . . . . . . . . . . . . . Robots Built . | . . . . . . . . . . . . . Matter . | . . . . . . . . . . . . . Time . | . . . . . . . . . . . . . Total Robot Build Rating . | . . . . . . . . . . . . . Part Schematics Acquired . | . . . . . . . . . . . . . Parts Built . | . . . . . . . . . . . . . Matter . | . . . . . . . . . . . . . Time . | . . . . . . . . . . . . . Total Part Build Rating . | . . . . . . . . . . . . . Parts Repaired . | . . . . . . . . . . . . . Time . | . . . . . . . . . . . . . Parts Recycled . | . . . . . . . . . . . . . Recycled Matter . | . . . . . . . . . . . . . Retrieved Matter . | . . . . . . . . . . . . . Retrieved Components 28 | . 9 . 19 . . . . . . . . . Parts Scanalyzed . | . . . . . . . . . . . . . Part Schematics Acquired . | . . . . . . . . . . . . . Parts Damaged . | . . . . . . . . . . . . . Bothacking | -11 -10 -10 -9 -9 -9 -8 -8 -8 -8 -8 -7 -7 ------------ Run | Scr Mat Min Mat Min Exi Min Mat Gar Mat Gar Fac Was Used RIF Installer 2 | . . . . . . . . 1 . 1 . . Patrol Navigation 1 | . . . . . . . . . . 1 . . Robots Hacked . | . . . . . . . . . . . . . Non-combat . | . . . . . . . . . . . . . Combat . | . . . . . . . . . . . . . Robot Hacks Applied . | . . . . . . . . . . . . . Relay Couplers Released 20 | . . . . . . . . 9 . 11 . . Machine Destruction 20 | . . . . . . . . 9 . 11 . . Robots Rewired . | . . . . . . . . . . . . . Allies Hacked . | . . . . . . . . . . . . . Hacks Repelled . | . . . . . . . . . . . . . Allies | -11 -10 -10 -9 -9 -9 -8 -8 -8 -8 -8 -7 -7 -------- Run | Scr Mat Min Mat Min Exi Min Mat Gar Mat Gar Fac Was Total Allies 2 | . . 1 . 1 . . . . . . . . Largest Group 1 | . . 1 . 1 . . . . . . . . Highest-Rated Group 31 | . . 31 . 31 . . . . . . . . Highest-Rated Ally 31 | . . 31 . 31 . . . . . . . . Total Orders . | . . . . . . . . . . . . . Ally Attacks 11 | . . . . 11 . . . . . . . . Total Damage 296 | . . . . 296 . . . . . . . . Kills 4 | . . . . 4 . . . . . . . . Allies Corrupted . | . . . . . . . . . . . . . Allies Melted . | . . . . . . . . . . . . . Intel | -11 -10 -10 -9 -9 -9 -8 -8 -8 -8 -8 -7 -7 ------- Run | Scr Mat Min Mat Min Exi Min Mat Gar Mat Gar Fac Was Robot Analysis Total 2 | . 2 . . . . . . . . . . . Derelict Logs Recovered 3 | . . 1 . 2 . . . . . . . . Drone Launches . | . . . . . . . . . . . . . Drone Recoveries . | . . . . . . . . . . . . . Exploration | -11 -10 -10 -9 -9 -9 -8 -8 -8 -8 -8 -7 -7 ------------- Run | Scr Mat Min Mat Min Exi Min Mat Gar Mat Gar Fac Was Turns Passed 10880 | 11 1045 1745 1045 1007 475 887 967 1400 225 1470 470 133 Spaces Moved 5170 | 5 519 780 493 565 288 435 363 645 120 685 228 44 Core 23 | . . . . . . . . . . . . 23 Treads 5017 | . 455 719 493 565 288 435 363 645 120 685 228 21 Legs . | . . . . . . . . . . . . . Wheels 130 | 5 64 61 . . . . . . . . . . Hover . | . . . . . . . . . . . . . Flight . | . . . . . . . . . . . . . Fastest Speed 50 | 100 100 110 160 160 160 180 180 180 180 180 180 50 Average Speed 171 | 100 167 172 160 160 162 180 180 180 180 180 180 113 Slowest Speed 200 | 100 180 180 180 160 180 180 180 180 180 200 183 200 Overloaded Moves . | . . . . . . . . . . . . . Propulsion Burnouts . | . . . . . . . . . . . . . Robots Hopped . | . . . . . . . . . . . . . Cave-ins Triggered . | . . . . . . . . . . . . . Exploration Rate (%) 55 | 3 83 96 45 96 66 97 33 60 12 88 5 39 Regions Visited 12 Branch Regions 4 Pre-discovered Areas 2 | . . 1 . 1 . . . . . . . . Known Exits Taken 3 | . . . 1 . . . 1 . 1 . . . Unknown Exits Taken 6 | 1 1 1 . 1 1 1 . . . . . . Scrap Searched 4 | . . 1 . 2 . 1 . . . . . . Spaces Dug 5 | . . 1 . . . . 3 . . 1 . . Terrain Destroyed 322 | . 4 1 23 4 . . 45 8 . 177 1 59 Melee 5 | . . 1 . . . . 3 . . 1 . . Projectile 5 | . . . 1 . . . 3 . . . 1 . AOE 312 | . 4 . 22 4 . . 39 8 . 176 . 59 Terrain Rammed . | . . . . . . . . . . . . . Walls Destroyed . | . . . . . . . . . . . . . Machines Disabled . | . . . . . . . . . . . . . Actions | -11 -10 -10 -9 -9 -9 -8 -8 -8 -8 -8 -7 -7 --------- Run | Scr Mat Min Mat Min Exi Min Mat Gar Mat Gar Fac Was Total 6477 | 10 598 1121 653 641 293 504 535 811 128 830 279 74 Wait 533 | . 3 299 30 49 . 15 37 59 . 14 24 3 Move 5161 | 4 518 779 492 564 287 434 363 644 120 684 228 44 Hop . | . . . . . . . . . . . . . Pick Up 86 | . 13 1 23 4 1 3 12 14 1 9 4 1 Fast Attach 32 | . 1 2 6 . . 8 2 2 2 4 4 1 Attach 46 | 2 4 3 6 2 . 3 7 7 . 10 2 . Detach 21 | . . 2 4 . . 6 2 3 . 2 2 . Swap 72 | . 2 2 8 2 2 4 16 12 1 18 3 2 Drop 78 | 3 2 1 25 3 1 8 5 9 3 12 5 1 Fire 349 | 1 48 20 54 14 2 20 77 47 . 47 5 14 Melee 52 | . . 9 . . . . 13 6 . 24 . . Ram 9 | . . 1 . . . . . . . . . 8 Kick . | . . . . . . . . . . . . . Crush 22 | . 7 2 5 3 . 3 1 . 1 . . . Escape Stasis 16 | . . . . . . . . 8 . 6 2 . Rewire . | . . . . . . . . . . . . . Trap . | . . . . . . . . . . . . . Miscellaneous . | . . . . . . . . . . . . . Route ------- -11/Scrapyard -10/Materials (discovered 4 exits: *Mat x2 / *Min x2) -10/Mines (discovered 2 exits: *Mat x2) -9/Materials (discovered 5 exits: *Mat x2 / *Min x2 / Sto) -9/Mines (discovered 3 exits: *Mat x2 / *Exi) -9/Exiles -8/Mines (discovered 2 exits: *Mat x2) -8/Materials -8/Garrison (discovered 2 exits: *Mat x2) -8/Materials -8/Garrison (discovered 3 exits: *Fac x3) -7/Factory -7/Waste History --------- Turn | Location | Event 5 | -11/Scrapyard | Discovered new exit (range 3) 12 | -11/Scrapyard | Entered Materials 308 | -10/Materials | Build established: Mutant 325 | -10/Materials | Discovered new exit (range 10) 592 | -10/Materials | Discovered new exit (range 13) 846 | -10/Materials | Discovered new exit (range 14) 1041 | -10/Materials | Discovered new exit (range 9) 1057 | -10/Materials | Entered Mines 1258 | -10/Mines | Received a Mining Laser from a helpful Derelict 1284 | -10/Mines | Discovered new exit (range 5) 1466 | -10/Mines | Assembled infested the area 2159 | -10/Mines | Discovered new exit (range 13) 2582 | -10/Mines | Learned location of Zion (-6) 2670 | -10/Mines | Lost 3 parts (1p2w) 2802 | -10/Mines | Entered Materials 2802 | -9/Materials | Evolved 2 slots: Propulsion x1, Utility x1 3070 | -9/Materials | Discovered new exit (range 11) 3087 | -9/Materials | Identified exit to Mines 3087 | -9/Materials | Identified exit to Storage 3209 | -9/Materials | Discovered new exit (range 8) 3495 | -9/Materials | Discovered new exit (range 15) 3847 | -9/Materials | Entered Mines 3897 | -9/Mines | Met a Derelict who couldn't figure out how to use a Trap Extractor 3985 | -9/Mines | Learned Materials trap positions 4065 | -9/Mines | Discovered new exit (range 11) 4131 | -9/Mines | Joined a pair of Derelicts in attacking an 0b10 outpost 4241 | -9/Mines | Learned location of Storage (-9) 4335 | -9/Mines | Met a Derelict testing a Signal Generator 4394 | -9/Mines | YI-UF0 nonchalantly dropped a Grenade Launcher on the ground 4633 | -9/Mines | Discovered new exit (range 6) 4670 | -9/Mines | Deemed a non-threat by the Exiles lab entrance 4672 | -9/Mines | Discovered new exit (range 5) 4709 | -9/Mines | Found a damaged Exp. Sensor Array with a note attached 4712 | -9/Mines | Found Prototype Device 4854 | -9/Mines | Entered Exiles 4893 | -9/Exiles | Met 8R-AWN 4917 | -9/Exiles | Met EX-HEX 5046 | -9/Exiles | Met EX-BIN 5066 | -9/Exiles | Aligned with FarCom system 5067 | -9/Exiles | Given EX-Vault access code 5104 | -9/Exiles | Opened EX-Vault 5144 | -9/Exiles | Warned to stay clear of 0b10 Research branches 5169 | -9/Exiles | Exiles lab attacked by MAIN.C 5303 | -9/Exiles | Discovered new exit (range 10) 5310 | -9/Exiles | Attacked by the Exiles 5329 | -9/Exiles | Entered Mines 5436 | -8/Mines | NK-0LA came to Exiles' defense 5448 | -8/Mines | Destroyed NK-0LA 5485 | -8/Mines | Found Prototype Device 5485 | -8/Mines | Identified Thermal Barrier 5495 | -8/Mines | Found Prototype Device 5495 | -8/Mines | Identified EM Disruption Field 5503 | -8/Mines | Found Prototype Energy Cannon 5503 | -8/Mines | Identified NK-0LA's Tesla Doomcannon 5579 | -8/Mines | Build established: Hauler-Mutant 5751 | -8/Mines | Discovered new exit (range 14) 6192 | -8/Mines | Discovered new exit (range 5) 6216 | -8/Mines | Entered Materials 6216 | -8/Materials | Evolved 2 slots: Utility x2 6217 | -8/Materials | Loaded intel: 15 trap records 7183 | -8/Materials | Identified exit to Garrison 7183 | -8/Materials | Entered Garrison 7228 | -8/Garrison | Triggered checkpoint 7342 | -8/Garrison | Build established: Scavenger-Mutant 7391 | -8/Garrison | Core integrity fell below 50% 7573 | -8/Garrison | Triggered checkpoint 7594 | -8/Garrison | Triggered checkpoint 7808 | -8/Garrison | Triggered checkpoint 7938 | -8/Garrison | Discovered new exit (range 10) 7967 | -8/Garrison | Installed Relay Interface Framework 8127 | -8/Garrison | Garrison Relay disabled 8290 | -8/Garrison | Triggered checkpoint 8316 | -8/Garrison | Garrison Relay disabled 8468 | -8/Garrison | Triggered checkpoint 8494 | -8/Garrison | Garrison Relay disabled 8563 | -8/Garrison | Discovered new exit (range 12) 8583 | -8/Garrison | Entered Materials 8614 | -8/Materials | Build established: Bothacker-Mutant 8808 | -8/Materials | Identified exit to Garrison 8808 | -8/Materials | Entered Garrison 8854 | -8/Garrison | Triggered checkpoint 8898 | -8/Garrison | Garrison Relay disabled 8920 | -8/Garrison | Triggered checkpoint 9055 | -8/Garrison | Triggered checkpoint 9118 | -8/Garrison | Core integrity fell below 20% 9141 | -8/Garrison | Destroyed 13 combat bots 9184 | -8/Garrison | Triggered checkpoint 9225 | -8/Garrison | Lost 3 parts (1n1u1w) 9228 | -8/Garrison | Garrison Relay disabled 9261 | -8/Garrison | Discovered new exit (range 8) 9354 | -8/Garrison | Triggered checkpoint 9445 | -8/Garrison | Garrison Relay disabled 9576 | -8/Garrison | Triggered checkpoint 9594 | -8/Garrison | Triggered checkpoint 9614 | -8/Garrison | Triggered checkpoint 9842 | -8/Garrison | Triggered checkpoint 9857 | -8/Garrison | Discovered new exit (range 15) 9933 | -8/Garrison | Phase Generator disabled 10046 | -8/Garrison | Triggered checkpoint 10096 | -8/Garrison | Triggered checkpoint 10244 | -8/Garrison | Discovered new exit (range 8) 10268 | -8/Garrison | Expanded RIF knowledge: Watcher Feeds 10278 | -8/Garrison | Entered Factory 10278 | -7/Factory | Evolved 2 slots: Utility x2 10748 | -7/Factory | Sucked down chute 10748 | -7/Factory | Entered Waste 10783 | -7/Waste | Spotted C-40 Crusher 10784 | -7/Waste | Spotted C-40 Crusher 10784 | -7/Waste | Spotted C-40 Crusher 10784 | -7/Waste | Spotted C-40 Crusher 10797 | -7/Waste | Destroyed C-40 Crusher 10803 | -7/Waste | Destroyed C-40 Crusher 10803 | -7/Waste | Destroyed C-40 Crusher 10815 | -7/Waste | Crushed by Compactor (0 parts destroyed, 2 dropped) 10818 | -7/Waste | Crushed by Compactor (0 parts destroyed, 1 dropped) 10821 | -7/Waste | Crushed by Compactor (0 parts destroyed, 1 dropped) 10824 | -7/Waste | Crushed by Compactor (1 part destroyed) 10824 | -7/Waste | Spotted C-40 Crusher 10827 | -7/Waste | Crushed by Compactor (0 parts destroyed, 2 dropped) 10839 | -7/Waste | Crushed by Compactor (1 part destroyed) 10852 | -7/Waste | Crushed by Compactor (1 part destroyed, 2 dropped) 10862 | -7/Waste | Core integrity fell below 50% 10881 | -7/Waste | Core integrity fell below 20% 10881 | -7/Waste | Self-destructed Last Messages --------------- 10855_ Remote Datajack crushed. 10857_ The unstable cave ceiling collapses. 10866_ Hcp. Matter Pod crushed. 10866_ Insulated Plating crushed. 10868_ Arm. Treads crushed. 10868_ Relay Coupler [NC] crushed. 10869_ Imp. Medium Armor Plating crushed. 10869_ Lgt. Treads crushed. 10870_ Prototype Device crushed. 10870_ Hcp. Storage Unit crushed. 10871_ Arc Projector crushed. 10871_ Imp. Medium Armor Plating crushed. 10871_ Relay Coupler [Sentry] crushed. 10872_ Hvy. Mace crushed. 10875_ Slammed into C-40 Crusher. 10876_ The unstable cave ceiling collapses. 10876_ Relay Coupler [NC] crushed. 10876_ Slammed into C-40 Crusher. 10879_ The unstable cave ceiling collapses. 10879_ Slammed into C-40 Crusher. Map ----- +----------------------------------------------------+ | ?????????????????????????????????????????????????? | | ?????????????????????????????????????????????????? | | ?????????????????????????????????????????????????? | | ?????????????????????????????????????????????????? | | ?????????????????????????????????????????????????? | | ?????????????????????????????????????????????????? | | ?????????????????????????????????????????????????? | | ?????????????????????????????????????????????????? | | ?????????????????????????????????????????????????? | | ?????????????????????????????????????????????????? | | ????????????????????????? ????????????????????? | | ????????????????????????# #???????????????????? | | ????????????????????????# #???????????????????? | | ????????????????????????# #???????????????????? | | ??????????????????????### #???????????????????? | | ??????????????????????# #???????????????????? | | ??????????????????????# #??????????? ??????? | | ??????????????????????? #?????????? ??????? | | ???????????????????????? #????????? ?????? | | ????????????????????????#! #???##??? ??????? | | ????????????????????????# #?## ### #???????? | | ????????????????????????# ## ###?????? | | ????????????????????????# #!## ## # #?????? | | ??????????????????????### !=## # # ###????? | | ??????????????????????#! ???? | | ??????????????????????#! @ ???? | | ??????????????????????# CC ???? | | ??????????????????????# CC ???? | | ??????????????????????### CC # # ##????? | | ??????????############??# CC # # ###?????? | | ??????????# #??# # # # #???????? | | ??????????# #??# ########? #???????? | | ??????????# #### #????????? #???????? | | ??????????# #???????????#???????? | | ??????????# #???????????????????? | | ??????????# #???????????????????? | | ??????????# #???????????????????? | | ??????????# #### #???????????????????? | | ??????????# #??# #???????????????????? | | ??????????# ! #??# #???????????????????? | | ??????????############??# #???????????????????? | | ????????????????????????# #???????????????????? | | ????????????????????????######???????????????????? | | ?????????????????????????????????????????????????? | | ?????????????????????????????????????????????????? | | ?????????????????????????????????????????????????? | | ?????????????????????????????????????????????????? | | ?????????????????????????????????????????????????? | | ?????????????????????????????????????????????????? | | ?????????????????????????????????????????????????? | +----------------------------------------------------+ Best States ------------- Heat Dissipation 54 Energy Generation 29 Energy Capacity 340 Matter Stores 427 Matter Capacity 500 Sight Range 16 Terrain Scan Density 10 Armor Coverage 1200 Resistance: TH 50 Resistance: EM 50 Evasion (%) 50 Recoil Reduction 3 Item Schematics ----------------- None Robot Schematics ------------------ None Fabricated ------------ Nothing Alien Tech Used ----------------- None Achievements -------------- Close Call Infiltrator Maybe Next Time I'll Detach My Launcher Challenges ------------ None Game ------ Seed GlidesysBombardmentSteel Manual? 0 Play Time 01:19:38 Cumulative 44.1 hours Start 2020.11.02 @ 22:24:31 End 2020.11.02 @ 23:48:59 Sessions 1 Manual Loads 0 Difficulty Rogue Special Mode Halloween2020/ForbiddenLore Game No. 31 Rogue 31 Adventurer 0 Explorer 0 Win Type - Total 0 Types 0/0/0/0/0/0/0/0/0 Lore% 21 Gallery% 28 Achievement% 23 Wizard Run 0 Options --------- ASCII 1 Keyboard 1 Movement Vi Keybinds 0 Fullscreen 1 Font 16/Terminus Map View 75x55 Tactical HUD 1 Map Filters NONE Filters NONE Steam 1 RUN: 7cb60a7e-0449-4d79-80e2-df42609fe851